[Event "Titled Tuesday Blitz April 19 Early 2022"]
[White "Terzi, Alexei"]
[Black "Dreev, Aleksey"]
[WhiteFideId "13505076"]
[BlackFideId "4100107"]
[WhiteElo "2031"]
[BlackElo "2625"]
[Result "0-1"]
[Round "05"]
[TimeControl "180+1"]
[Date "2022.04.19"]
[WhiteClock "0:00:02"]
[BlackClock "0:01:00"]

1. e4 {[%clk 0:03:00]}  c5 {[%clk 0:02:59]} 2. Nf3 {[%clk 0:03:00]}  e6 {[%clk 0:02:59]} 3. d4 {[%clk 0:03:00]}  cxd4 {[%clk 0:03:00]} 4. Nxd4 {[%clk 0:03:01]}  Nf6 {[%clk 0:03:01]} 5. Nc3 {[%clk 0:02:59]}  Nc6 {[%clk 0:03:01]} 6. Ndb5 {[%clk 0:02:59]}  Bc5 {[%clk 0:03:00]} 7. Nd6+ {[%clk 0:02:50]}  Ke7 {[%clk 0:03:00]} 8. Nc4 {[%clk 0:02:42]}  d5 {[%clk 0:02:45]} 9. exd5 {[%clk 0:02:34]}  exd5 {[%clk 0:02:45]} 10. Qe2+ {[%clk 0:02:23]}  Be6 {[%clk 0:02:40]} 11. Ne5 {[%clk 0:02:19]}  Nd4 {[%clk 0:02:35]} 12. Qd1 {[%clk 0:01:59]}  Qc7 {[%clk 0:02:24]} 13. Bf4 {[%clk 0:01:41]}  Qb6 {[%clk 0:02:24]} 14. Na4 {[%clk 0:01:30]}  Qb4+ {[%clk 0:02:24]} 15. c3 {[%clk 0:01:29]}  Nc2+ {[%clk 0:02:23]} 16. Qxc2 {[%clk 0:01:26]}  Qxf4 {[%clk 0:02:24]} 17. Nxc5 {[%clk 0:01:05]}  Qxe5+ {[%clk 0:02:24]} 18. Be2 {[%clk 0:01:05]}  Rhc8 {[%clk 0:02:15]} 19. Nd3 {[%clk 0:01:03]}  Qg5 {[%clk 0:02:13]} 20. O-O {[%clk 0:01:02]}  Kf8 {[%clk 0:02:13]} 21. Bf3 {[%clk 0:00:57]}  Rc7 {[%clk 0:02:09]} 22. Qe2 {[%clk 0:00:53]}  Rd8 {[%clk 0:02:05]} 23. Qe5 {[%clk 0:00:39]}  Qxe5 {[%clk 0:02:03]} 24. Nxe5 {[%clk 0:00:40]}  d4 {[%clk 0:01:58]} 25. cxd4 {[%clk 0:00:33]}  Rxd4 {[%clk 0:01:57]} 26. Rfc1 {[%clk 0:00:31]}  Rxc1+ {[%clk 0:01:46]} 27. Rxc1 {[%clk 0:00:32]}  Ke7 {[%clk 0:01:37]} 28. Bxb7 {[%clk 0:00:30]}  Rd2 {[%clk 0:01:33]} 29. b4 {[%clk 0:00:27]}  Kd6 {[%clk 0:01:28]} 30. Nf3 {[%clk 0:00:17]}  Rxa2 {[%clk 0:01:28]} 31. b5 {[%clk 0:00:16]}  Ng4 {[%clk 0:01:20]} 32. h3 {[%clk 0:00:12]}  Nxf2 {[%clk 0:01:19]} 33. Rc6+ {[%clk 0:00:13]}  Ke7 {[%clk 0:01:16]} 34. Nd4 {[%clk 0:00:12]}  Nd3 {[%clk 0:01:13]} 35. Nxe6 {[%clk 0:00:10]}  fxe6 {[%clk 0:01:13]} 36. Rc7+ {[%clk 0:00:08]}  Kf6 {[%clk 0:01:13]} 37. Bc6 {[%clk 0:00:03]}  Nf4 {[%clk 0:01:08]} 38. h4 {[%clk 0:00:01]}  h6 {[%clk 0:01:07]} 39. g3 {[%clk 0:00:01]}  Ne2+ {[%clk 0:01:05]} 40. Kf1 {[%clk 0:00:01]}  Nxg3+ {[%clk 0:01:05]} 41. Ke1 {[%clk 0:00:02]}  Nf5 {[%clk 0:01:04]} 42. Be8 {[%clk 0:00:03]}  g5 {[%clk 0:01:03]} 43. Rf7+ {[%clk 0:00:02]}  Ke5 {[%clk 0:01:02]} 44. hxg5 {[%clk 0:00:03]}  hxg5 {[%clk 0:01:03]} 45. Rc7 {[%clk 0:00:03]}  g4 {[%clk 0:01:02]} 46. Bh5 {[%clk 0:00:02]}  g3 {[%clk 0:01:02]} 47. Bf3 {[%clk 0:00:03]}  Nd4 {[%clk 0:01:01]} 48. Bg2 {[%clk 0:00:02]}  Rxg2 {[%clk 0:01:00]} 0-1


[Site "https://www.chess.com"]

[Event "Titled Tuesday Blitz April 19 Early 2022"]
[White "Timofeev, Artyom"]
[Black "Ajay Krishna, S"]
[WhiteFideId "4140419"]
[BlackFideId "5096430"]
[WhiteElo "2594"]
[BlackElo "2247"]
[Result "1-0"]
[Round "05"]
[TimeControl "180+1"]
[Date "2022.04.19"]
[WhiteClock "0:01:49"]
[BlackClock "0:00:06"]

1. e4 {[%clk 0:03:00]}  c5 {[%clk 0:02:58]} 2. Nc3 {[%clk 0:02:59]}  Nc6 {[%clk 0:02:53]} 3. Bb5 {[%clk 0:02:59]}  Nd4 {[%clk 0:02:49]} 4. Nf3 {[%clk 0:02:58]}  Nxb5 {[%clk 0:02:45]} 5. Nxb5 {[%clk 0:02:58]}  d6 {[%clk 0:02:39]} 6. d4 {[%clk 0:02:55]}  Nf6 {[%clk 0:02:32]} 7. O-O {[%clk 0:02:46]}  cxd4 {[%clk 0:02:29]} 8. Qxd4 {[%clk 0:02:45]}  a6 {[%clk 0:02:26]} 9. Nc3 {[%clk 0:02:44]}  e6 {[%clk 0:02:26]} 10. Bg5 {[%clk 0:02:41]}  Be7 {[%clk 0:02:25]} 11. Rad1 {[%clk 0:02:41]}  b5 {[%clk 0:02:04]} 12. e5 {[%clk 0:02:27]}  dxe5 {[%clk 0:02:02]} 13. Qxe5 {[%clk 0:02:27]}  Qb6 {[%clk 0:01:56]} 14. Bxf6 {[%clk 0:02:21]}  Bxf6 {[%clk 0:01:52]} 15. Nd5 {[%clk 0:02:19]}  Qc6 {[%clk 0:00:57]} 16. Nxf6+ {[%clk 0:02:08]}  gxf6 {[%clk 0:00:56]} 17. Qxf6 {[%clk 0:02:08]}  O-O {[%clk 0:00:53]} 18. Ne5 {[%clk 0:02:04]}  Qxc2 {[%clk 0:00:18]} 19. Qg5+ {[%clk 0:02:02]}  Qg6 {[%clk 0:00:12]} 20. Nxg6 {[%clk 0:02:02]}  hxg6 {[%clk 0:00:13]} 21. h4 {[%clk 0:02:01]}  Bb7 {[%clk 0:00:10]} 22. h5 {[%clk 0:02:01]}  Be4 {[%clk 0:00:08]} 23. Rd4 {[%clk 0:01:50]}  Bf5 {[%clk 0:00:06]} 24. hxg6 {[%clk 0:01:49]}  Bxg6 {[%clk 0:00:06]} 25. Qf6 {[%clk 0:01:49]} 1-0


[Site "https://www.chess.com"]

[Event "Titled Tuesday Blitz April 19 Early 2022"]
[White "Tologon tegin, Semetei"]
[Black "Miszler, Levente"]
[WhiteFideId "13800574"]
[BlackFideId "763276"]
[WhiteElo "2258"]
[BlackElo "1966"]
[Result "0-1"]
[Round "05"]
[TimeControl "180+1"]
[Date "2022.04.19"]
[WhiteClock "0:00:53"]
[BlackClock "0:00:32"]

1. e4 {[%clk 0:03:00]}  e6 {[%clk 0:02:57]} 2. d4 {[%clk 0:02:57]}  d5 {[%clk 0:02:57]} 3. e5 {[%clk 0:02:58]}  c5 {[%clk 0:02:57]} 4. c3 {[%clk 0:02:57]}  Nc6 {[%clk 0:02:57]} 5. Nf3 {[%clk 0:02:57]}  Bd7 {[%clk 0:02:57]} 6. Be2 {[%clk 0:02:57]}  f6 {[%clk 0:02:56]} 7. exf6 {[%clk 0:02:55]}  Nxf6 {[%clk 0:02:57]} 8. O-O {[%clk 0:02:55]}  Qc7 {[%clk 0:02:53]} 9. Re1 {[%clk 0:02:48]}  O-O-O {[%clk 0:02:53]} 10. Bd3 {[%clk 0:02:38]}  Bd6 {[%clk 0:02:46]} 11. dxc5 {[%clk 0:02:37]}  Bxc5 {[%clk 0:02:45]} 12. Be3 {[%clk 0:02:38]}  Bxe3 {[%clk 0:02:42]} 13. Rxe3 {[%clk 0:02:37]}  e5 {[%clk 0:02:29]} 14. Bb5 {[%clk 0:02:37]}  Ng4 {[%clk 0:02:20]} 15. h3 {[%clk 0:02:11]}  Nxe3 {[%clk 0:02:19]} 16. fxe3 {[%clk 0:02:11]}  Qb6 {[%clk 0:02:16]} 17. Bxc6 {[%clk 0:02:09]}  Qxe3+ {[%clk 0:02:15]} 18. Kh1 {[%clk 0:02:09]}  Bxc6 {[%clk 0:02:15]} 19. Nbd2 {[%clk 0:02:08]}  d4 {[%clk 0:02:12]} 20. cxd4 {[%clk 0:02:08]}  exd4 {[%clk 0:02:08]} 21. Rc1 {[%clk 0:02:07]}  Kb8 {[%clk 0:02:01]} 22. b4 {[%clk 0:02:04]}  d3 {[%clk 0:01:53]} 23. b5 {[%clk 0:01:50]}  Bxf3 {[%clk 0:01:50]} 24. Nxf3 {[%clk 0:01:49]}  Rc8 {[%clk 0:01:48]} 25. Rb1 {[%clk 0:01:42]}  Rc2 {[%clk 0:01:42]} 26. Qf1 {[%clk 0:01:40]}  Rf2 {[%clk 0:01:30]} 27. Qg1 {[%clk 0:01:36]}  d2 {[%clk 0:01:25]} 28. Rd1 {[%clk 0:01:26]}  Rd8 {[%clk 0:01:09]} 29. Qh2+ {[%clk 0:01:23]}  Kc8 {[%clk 0:01:00]} 30. Qg3 {[%clk 0:01:22]}  Qe2 {[%clk 0:00:48]} 31. Qg4+ {[%clk 0:01:14]}  Kb8 {[%clk 0:00:37]} 32. Qf4+ {[%clk 0:01:14]}  Ka8 {[%clk 0:00:36]} 33. Rxd2 {[%clk 0:01:06]}  Qf1+ {[%clk 0:00:31]} 34. Kh2 {[%clk 0:00:53]}  Qxg2# {[%clk 0:00:32]} 0-1


[Site "https://www.chess.com"]

[Event "Titled Tuesday Blitz April 19 Early 2022"]
[White "Trost, Edvin"]
[Black "Legenia, Artem"]
[WhiteFideId "1729519"]
[BlackFideId "14136945"]
[WhiteElo "2160"]
[BlackElo "1936"]
[Result "1-0"]
[Round "05"]
[TimeControl "180+1"]
[Date "2022.04.19"]
[WhiteClock "0:01:37"]
[BlackClock "0:01:50"]

1. d4 {[%clk 0:02:48]}  b6 {[%clk 0:02:57]} 2. c4 {[%clk 0:02:43]}  Nf6 {[%clk 0:02:56]} 3. Nc3 {[%clk 0:02:37]}  Bb7 {[%clk 0:02:55]} 4. f3 {[%clk 0:02:34]}  e6 {[%clk 0:02:50]} 5. e4 {[%clk 0:02:34]}  d6 {[%clk 0:02:49]} 6. Be3 {[%clk 0:02:33]}  h6 {[%clk 0:02:49]} 7. Bd3 {[%clk 0:02:34]}  a6 {[%clk 0:02:47]} 8. Nge2 {[%clk 0:02:34]}  e5 {[%clk 0:02:47]} 9. O-O {[%clk 0:02:31]}  Nbd7 {[%clk 0:02:43]} 10. d5 {[%clk 0:02:26]}  g6 {[%clk 0:02:40]} 11. b4 {[%clk 0:02:22]}  Bg7 {[%clk 0:02:39]} 12. c5 {[%clk 0:02:13]}  bxc5 {[%clk 0:02:35]} 13. bxc5 {[%clk 0:02:14]}  Nxc5 {[%clk 0:02:36]} 14. Bxc5 {[%clk 0:02:07]}  dxc5 {[%clk 0:02:36]} 15. Na4 {[%clk 0:02:08]}  O-O {[%clk 0:02:32]} 16. Nxc5 {[%clk 0:02:07]}  Bc8 {[%clk 0:02:32]} 17. Qc2 {[%clk 0:01:57]}  Nd7 {[%clk 0:02:25]} 18. Rfc1 {[%clk 0:01:52]}  Nxc5 {[%clk 0:01:54]} 19. Qxc5 {[%clk 0:01:53]}  f5 {[%clk 0:01:54]} 20. Qxc7 {[%clk 0:01:47]}  Qh4 {[%clk 0:01:54]} 21. d6 {[%clk 0:01:42]}  fxe4 {[%clk 0:01:50]} 22. Bxe4 {[%clk 0:01:37]} 1-0


[Site "https://www.chess.com"]

[Event "Titled Tuesday Blitz April 19 Early 2022"]
[White "Vidonyak, Roman"]
[Black "Zemerov, Vladimir"]
[WhiteFideId "14100622"]
[BlackFideId "4111583"]
[WhiteElo "2448"]
[BlackElo "2277"]
[Result "0-1"]
[Round "05"]
[TimeControl "180+1"]
[Date "2022.04.19"]
[WhiteClock "0:00:12"]
[BlackClock "0:01:02"]

1. d4 {[%clk 0:03:00]}  d6 {[%clk 0:02:58]} 2. c4 {[%clk 0:02:53]}  g6 {[%clk 0:02:59]} 3. Nc3 {[%clk 0:02:53]}  Bg7 {[%clk 0:02:59]} 4. e4 {[%clk 0:02:53]}  Nc6 {[%clk 0:02:59]} 5. Nge2 {[%clk 0:02:53]}  e5 {[%clk 0:02:56]} 6. d5 {[%clk 0:02:51]}  Nd4 {[%clk 0:02:56]} 7. Be3 {[%clk 0:02:52]}  Bg4 {[%clk 0:02:56]} 8. h3 {[%clk 0:02:35]}  Bxe2 {[%clk 0:02:55]} 9. Bxe2 {[%clk 0:02:36]}  c5 {[%clk 0:02:51]} 10. dxc6 {[%clk 0:02:35]}  bxc6 {[%clk 0:02:52]} 11. O-O {[%clk 0:02:30]}  Ne7 {[%clk 0:02:51]} 12. Qd2 {[%clk 0:02:23]}  O-O {[%clk 0:02:49]} 13. Rab1 {[%clk 0:02:19]}  Rb8 {[%clk 0:02:47]} 14. Bd3 {[%clk 0:02:10]}  f5 {[%clk 0:02:46]} 15. Bxd4 {[%clk 0:02:02]}  exd4 {[%clk 0:02:45]} 16. Ne2 {[%clk 0:02:03]}  f4 {[%clk 0:02:31]} 17. Nxf4 {[%clk 0:01:39]}  Bh6 {[%clk 0:02:26]} 18. g3 {[%clk 0:01:39]}  c5 {[%clk 0:02:26]} 19. Kg2 {[%clk 0:01:27]}  Qd7 {[%clk 0:02:25]} 20. f3 {[%clk 0:01:15]}  Nc6 {[%clk 0:02:24]} 21. Kh2 {[%clk 0:00:57]}  Ne5 {[%clk 0:02:23]} 22. b3 {[%clk 0:00:56]}  Nxd3 {[%clk 0:02:18]} 23. Qxd3 {[%clk 0:00:57]}  Bxf4 {[%clk 0:02:17]} 24. gxf4 {[%clk 0:00:58]}  Rxf4 {[%clk 0:02:18]} 25. Rg1 {[%clk 0:00:56]}  Rbf8 {[%clk 0:02:15]} 26. Rbf1 {[%clk 0:00:53]}  Qf7 {[%clk 0:02:11]} 27. Rg3 {[%clk 0:00:51]}  Qf6 {[%clk 0:02:07]} 28. b4 {[%clk 0:00:45]}  h5 {[%clk 0:02:04]} 29. bxc5 {[%clk 0:00:44]}  dxc5 {[%clk 0:01:51]} 30. e5 {[%clk 0:00:45]}  Qf5 {[%clk 0:01:40]} 31. Rxg6+ {[%clk 0:00:43]}  Kh7 {[%clk 0:01:40]} 32. Qxf5 {[%clk 0:00:37]}  R4xf5 {[%clk 0:01:37]} 33. Ra6 {[%clk 0:00:24]}  Rxf3 {[%clk 0:01:33]} 34. Rxa7+ {[%clk 0:00:24]}  Kg6 {[%clk 0:01:32]} 35. Ra6+ {[%clk 0:00:23]}  Kg5 {[%clk 0:01:30]} 36. Rg1+ {[%clk 0:00:23]}  Kh4 {[%clk 0:01:28]} 37. Rag6 {[%clk 0:00:16]}  Rxh3+ {[%clk 0:01:27]} 38. Kg2 {[%clk 0:00:16]}  Rf4 {[%clk 0:01:23]} 39. e6 {[%clk 0:00:16]}  Re4 {[%clk 0:01:18]} 40. Rf1 {[%clk 0:00:15]}  Re2+ {[%clk 0:01:14]} 41. Kg1 {[%clk 0:00:15]}  Rg3+ {[%clk 0:01:13]} 42. Rxg3 {[%clk 0:00:15]}  Kxg3 {[%clk 0:01:13]} 43. a4 {[%clk 0:00:11]}  Rxe6 {[%clk 0:01:11]} 44. Ra1 {[%clk 0:00:12]}  d3 {[%clk 0:01:09]} 45. a5 {[%clk 0:00:12]}  d2 {[%clk 0:01:09]} 46. Kf1 {[%clk 0:00:12]}  Kf3 {[%clk 0:01:05]} 47. a6 {[%clk 0:00:12]}  Rxa6 {[%clk 0:01:03]} 48. Rd1 {[%clk 0:00:11]}  Rd6 {[%clk 0:01:02]} 49. Kg1 {[%clk 0:00:12]}  Ke2 {[%clk 0:01:02]} 0-1


[Site "https://www.chess.com"]

[Event "Titled Tuesday Blitz April 19 Early 2022"]
[White "Vlassov, Nikolai"]
[Black "Chernyavsky, Alexander"]
[WhiteFideId "4103360"]
[BlackFideId "24131156"]
[WhiteElo "2407"]
[BlackElo "2292"]
[Result "1-0"]
[Round "05"]
[TimeControl "180+1"]
[Date "2022.04.19"]
[WhiteClock "0:00:12"]
[BlackClock "0:00:03"]

1. e4 {[%clk 0:03:00]}  e6 {[%clk 0:03:00]} 2. d4 {[%clk 0:03:00]}  d5 {[%clk 0:03:01]} 3. exd5 {[%clk 0:03:01]}  exd5 {[%clk 0:03:01]} 4. Nf3 {[%clk 0:03:02]}  Bd6 {[%clk 0:02:58]} 5. c4 {[%clk 0:03:02]}  Nf6 {[%clk 0:02:53]} 6. c5 {[%clk 0:03:02]}  Be7 {[%clk 0:02:53]} 7. Bd3 {[%clk 0:03:03]}  b6 {[%clk 0:02:53]} 8. cxb6 {[%clk 0:03:02]}  axb6 {[%clk 0:02:53]} 9. O-O {[%clk 0:03:03]}  O-O {[%clk 0:02:53]} 10. Re1 {[%clk 0:03:03]}  c5 {[%clk 0:02:52]} 11. Nc3 {[%clk 0:03:04]}  Nc6 {[%clk 0:02:49]} 12. h3 {[%clk 0:03:03]}  h6 {[%clk 0:02:32]} 13. Bf4 {[%clk 0:02:58]}  Ra5 {[%clk 0:02:24]} 14. a3 {[%clk 0:02:40]}  c4 {[%clk 0:02:23]} 15. Bc2 {[%clk 0:02:36]}  b5 {[%clk 0:02:20]} 16. Rc1 {[%clk 0:02:34]}  b4 {[%clk 0:02:15]} 17. axb4 {[%clk 0:02:34]}  Nxb4 {[%clk 0:02:15]} 18. Bb1 {[%clk 0:02:34]}  Be6 {[%clk 0:02:08]} 19. Ne5 {[%clk 0:02:34]}  Qb6 {[%clk 0:02:03]} 20. Be3 {[%clk 0:02:27]}  Nc6 {[%clk 0:01:43]} 21. Qd2 {[%clk 0:02:26]}  Rb8 {[%clk 0:01:13]} 22. Nxc4 {[%clk 0:01:59]}  dxc4 {[%clk 0:01:04]} 23. d5 {[%clk 0:02:00]}  Qxb2 {[%clk 0:01:05]} 24. dxe6 {[%clk 0:01:53]}  Qxd2 {[%clk 0:00:48]} 25. Bxd2 {[%clk 0:01:53]}  Rb2 {[%clk 0:00:49]} 26. Ne4 {[%clk 0:01:43]}  Rab5 {[%clk 0:00:38]} 27. Bc3 {[%clk 0:01:31]}  Rxb1 {[%clk 0:00:33]} 28. Rxb1 {[%clk 0:01:22]}  Rxb1 {[%clk 0:00:33]} 29. Nxf6+ {[%clk 0:01:22]}  Bxf6 {[%clk 0:00:33]} 30. Rxb1 {[%clk 0:01:21]}  Bxc3 {[%clk 0:00:34]} 31. Rb8+ {[%clk 0:01:21]}  Nxb8 {[%clk 0:00:33]} 32. e7 {[%clk 0:01:21]}  Nd7 {[%clk 0:00:31]} 33. e8=Q+ {[%clk 0:01:20]}  Nf8 {[%clk 0:00:32]} 34. Qc6 {[%clk 0:01:16]}  Bf6 {[%clk 0:00:31]} 35. Qxc4 {[%clk 0:01:16]}  g6 {[%clk 0:00:32]} 36. g3 {[%clk 0:01:16]}  h5 {[%clk 0:00:32]} 37. Kg2 {[%clk 0:01:15]}  Kg7 {[%clk 0:00:33]} 38. f4 {[%clk 0:01:14]}  Ne6 {[%clk 0:00:32]} 39. Qd5 {[%clk 0:01:03]}  Nd4 {[%clk 0:00:31]} 40. g4 {[%clk 0:01:01]}  hxg4 {[%clk 0:00:31]} 41. hxg4 {[%clk 0:01:01]}  Ne6 {[%clk 0:00:32]} 42. Kf3 {[%clk 0:00:59]}  g5 {[%clk 0:00:32]} 43. fxg5 {[%clk 0:00:55]}  Nxg5+ {[%clk 0:00:32]} 44. Kf4 {[%clk 0:00:51]}  Ne6+ {[%clk 0:00:32]} 45. Kf5 {[%clk 0:00:50]}  Nd4+ {[%clk 0:00:32]} 46. Ke4 {[%clk 0:00:50]}  Ne6 {[%clk 0:00:32]} 47. Qd6 {[%clk 0:00:48]}  Ng5+ {[%clk 0:00:33]} 48. Kf5 {[%clk 0:00:48]}  Ne6 {[%clk 0:00:34]} 49. Qd7 {[%clk 0:00:41]}  Nd4+ {[%clk 0:00:33]} 50. Ke4 {[%clk 0:00:41]}  Ne6 {[%clk 0:00:33]} 51. Qa7 {[%clk 0:00:40]}  Bd4 {[%clk 0:00:33]} 52. Qa5 {[%clk 0:00:33]}  Bf6 {[%clk 0:00:33]} 53. Kd5 {[%clk 0:00:33]}  Nf4+ {[%clk 0:00:32]} 54. Kd6 {[%clk 0:00:32]}  Ne6 {[%clk 0:00:31]} 55. Kd7 {[%clk 0:00:32]}  Kf8 {[%clk 0:00:28]} 56. Qb4+ {[%clk 0:00:29]}  Kg7 {[%clk 0:00:27]} 57. Ke8 {[%clk 0:00:28]}  Nc7+ {[%clk 0:00:27]} 58. Kd7 {[%clk 0:00:29]}  Nd5 {[%clk 0:00:27]} 59. Qc5 {[%clk 0:00:25]}  Nf4 {[%clk 0:00:20]} 60. g5 {[%clk 0:00:23]}  Bb2 {[%clk 0:00:20]} 61. Ke8 {[%clk 0:00:22]}  Ne6 {[%clk 0:00:19]} 62. Qe7 {[%clk 0:00:20]}  Kh8 {[%clk 0:00:06]} 63. Kxf7 {[%clk 0:00:17]}  Ng7 {[%clk 0:00:05]} 64. g6 {[%clk 0:00:12]}  Nf5 {[%clk 0:00:03]} 65. Qf8# {[%clk 0:00:12]} 1-0


[Site "https://www.chess.com"]

[Event "Titled Tuesday Blitz April 19 Early 2022"]
[White "Vokarev, Sergey"]
[Black "Popadic, Dragan"]
[WhiteFideId "4119711"]
[BlackFideId "913650"]
[WhiteElo "2343"]
[BlackElo "2203"]
[Result "0-1"]
[Round "05"]
[TimeControl "180+1"]
[Date "2022.04.19"]
[WhiteClock "0:00:01"]
[BlackClock "0:00:10"]

1. e4 {[%clk 0:02:55]}  c5 {[%clk 0:02:58]} 2. Nf3 {[%clk 0:02:55]}  Nc6 {[%clk 0:02:58]} 3. d4 {[%clk 0:02:55]}  cxd4 {[%clk 0:02:58]} 4. Nxd4 {[%clk 0:02:56]}  Nf6 {[%clk 0:02:58]} 5. Nc3 {[%clk 0:02:56]}  e5 {[%clk 0:02:58]} 6. Ndb5 {[%clk 0:02:56]}  d6 {[%clk 0:02:58]} 7. Bg5 {[%clk 0:02:56]}  a6 {[%clk 0:02:58]} 8. Na3 {[%clk 0:02:56]}  b5 {[%clk 0:02:58]} 9. Nd5 {[%clk 0:02:57]}  Be7 {[%clk 0:02:58]} 10. Bxf6 {[%clk 0:02:58]}  Bxf6 {[%clk 0:02:58]} 11. c4 {[%clk 0:02:58]}  b4 {[%clk 0:02:56]} 12. Nc2 {[%clk 0:02:59]}  O-O {[%clk 0:02:56]} 13. Qf3 {[%clk 0:02:59]}  Bg5 {[%clk 0:02:53]} 14. h4 {[%clk 0:02:58]}  Bh6 {[%clk 0:02:53]} 15. Rd1 {[%clk 0:02:58]}  Rb8 {[%clk 0:02:51]} 16. b3 {[%clk 0:02:57]}  a5 {[%clk 0:02:51]} 17. Be2 {[%clk 0:02:57]}  Kh8 {[%clk 0:02:38]} 18. g4 {[%clk 0:02:57]}  Bf4 {[%clk 0:02:34]} 19. Nxf4 {[%clk 0:02:56]}  exf4 {[%clk 0:02:34]} 20. Qxf4 {[%clk 0:02:56]}  Ne5 {[%clk 0:02:24]} 21. g5 {[%clk 0:02:33]}  Qe7 {[%clk 0:02:20]} 22. h5 {[%clk 0:02:30]}  Bb7 {[%clk 0:02:09]} 23. Ne3 {[%clk 0:02:26]}  Rbd8 {[%clk 0:02:05]} 24. Nf5 {[%clk 0:02:11]}  Qe6 {[%clk 0:02:04]} 25. Kf1 {[%clk 0:01:31]}  g6 {[%clk 0:01:59]} 26. Ne3 {[%clk 0:01:15]}  f5 {[%clk 0:01:40]} 27. gxf6 {[%clk 0:00:54]}  Rxf6 {[%clk 0:01:37]} 28. Qh4 {[%clk 0:00:52]}  g5 {[%clk 0:01:25]} 29. Qxg5 {[%clk 0:00:46]}  Bxe4 {[%clk 0:01:22]} 30. Rg1 {[%clk 0:00:42]}  Rg8 {[%clk 0:01:02]} 31. Qxg8+ {[%clk 0:00:40]}  Qxg8 {[%clk 0:01:02]} 32. Rxg8+ {[%clk 0:00:40]}  Kxg8 {[%clk 0:01:02]} 33. Rd4 {[%clk 0:00:32]}  Bb7 {[%clk 0:00:52]} 34. Ng4 {[%clk 0:00:22]}  Nxg4 {[%clk 0:00:45]} 35. Bxg4 {[%clk 0:00:21]}  Kf7 {[%clk 0:00:45]} 36. c5 {[%clk 0:00:20]}  Ke7 {[%clk 0:00:41]} 37. cxd6+ {[%clk 0:00:16]}  Rxd6 {[%clk 0:00:41]} 38. Rxd6 {[%clk 0:00:14]}  Kxd6 {[%clk 0:00:41]} 39. Ke2 {[%clk 0:00:14]}  Be4 {[%clk 0:00:35]} 40. Ke3 {[%clk 0:00:10]}  Bb1 {[%clk 0:00:35]} 41. Kd4 {[%clk 0:00:09]}  h6 {[%clk 0:00:34]} 42. Be2 {[%clk 0:00:07]}  Bxa2 {[%clk 0:00:32]} 43. Bd1 {[%clk 0:00:06]}  Bb1 {[%clk 0:00:29]} 44. f4 {[%clk 0:00:07]}  Bf5 {[%clk 0:00:29]} 45. Be2 {[%clk 0:00:04]}  Be6 {[%clk 0:00:28]} 46. Bc4 {[%clk 0:00:03]}  Bg4 {[%clk 0:00:26]} 47. Bf7 {[%clk 0:00:04]}  Bd1 {[%clk 0:00:25]} 48. f5 {[%clk 0:00:02]}  a4 {[%clk 0:00:19]} 49. bxa4 {[%clk 0:00:02]}  Bxa4 {[%clk 0:00:19]} 50. Kc4 {[%clk 0:00:01]}  Bd7 {[%clk 0:00:11]} 51. f6 {[%clk 0:00:01]}  Ke5 {[%clk 0:00:10]} 0-1


[Site "https://www.chess.com"]

[Event "Titled Tuesday Blitz April 19 Early 2022"]
[White "Vokhidov, Shamsiddin"]
[Black "Sjugirov, Sanan"]
[WhiteFideId "14204223"]
[BlackFideId "4189302"]
[WhiteElo "2611"]
[BlackElo "2602"]
[Result "1/2-1/2"]
[Round "05"]
[TimeControl "180+1"]
[Date "2022.04.19"]
[WhiteClock "0:00:34"]
[BlackClock "0:00:13"]

1. e4 {[%clk 0:03:00]}  c6 {[%clk 0:02:59]} 2. d4 {[%clk 0:03:01]}  d5 {[%clk 0:02:59]} 3. e5 {[%clk 0:03:01]}  Bf5 {[%clk 0:03:00]} 4. h4 {[%clk 0:03:02]}  h5 {[%clk 0:02:59]} 5. Bd3 {[%clk 0:03:02]}  Bxd3 {[%clk 0:02:57]} 6. Qxd3 {[%clk 0:03:03]}  Qa5+ {[%clk 0:02:53]} 7. Nd2 {[%clk 0:03:03]}  e6 {[%clk 0:02:53]} 8. Nf3 {[%clk 0:03:04]}  Nh6 {[%clk 0:02:52]} 9. O-O {[%clk 0:03:04]}  Nf5 {[%clk 0:02:51]} 10. Nb3 {[%clk 0:03:04]}  Qa6 {[%clk 0:02:50]} 11. Qd1 {[%clk 0:03:05]}  b6 {[%clk 0:02:46]} 12. Bg5 {[%clk 0:03:04]}  c5 {[%clk 0:02:36]} 13. dxc5 {[%clk 0:03:04]}  bxc5 {[%clk 0:02:36]} 14. c3 {[%clk 0:02:47]}  Nc6 {[%clk 0:02:29]} 15. Re1 {[%clk 0:02:47]}  Rb8 {[%clk 0:02:23]} 16. Qc2 {[%clk 0:02:43]}  Qa4 {[%clk 0:02:21]} 17. Qe2 {[%clk 0:02:32]}  Qb5 {[%clk 0:01:56]} 18. c4 {[%clk 0:02:14]}  Qxc4 {[%clk 0:01:52]} 19. Qxc4 {[%clk 0:02:10]}  dxc4 {[%clk 0:01:53]} 20. Nbd2 {[%clk 0:02:11]}  Rxb2 {[%clk 0:01:43]} 21. Nxc4 {[%clk 0:02:11]}  Rb4 {[%clk 0:01:38]} 22. Rac1 {[%clk 0:02:11]}  Be7 {[%clk 0:01:10]} 23. Bxe7 {[%clk 0:01:33]}  Kxe7 {[%clk 0:01:11]} 24. Nd6 {[%clk 0:01:29]}  Nxd6 {[%clk 0:01:08]} 25. Rxc5 {[%clk 0:01:29]}  Rb6 {[%clk 0:00:45]} 26. exd6+ {[%clk 0:01:27]}  Kxd6 {[%clk 0:00:46]} 27. Rec1 {[%clk 0:01:25]}  f6 {[%clk 0:00:43]} 28. Nd2 {[%clk 0:01:22]}  Ra6 {[%clk 0:00:22]} 29. Ne4+ {[%clk 0:00:40]}  Kc7 {[%clk 0:00:22]} 30. R5c2 {[%clk 0:00:37]}  Rb6 {[%clk 0:00:12]} 31. Nc5 {[%clk 0:00:38]}  Re8 {[%clk 0:00:11]} 32. Na4 {[%clk 0:00:34]}  Ra6 {[%clk 0:00:11]} 33. Nc5 {[%clk 0:00:34]}  Rb6 {[%clk 0:00:12]} 34. Na4 {[%clk 0:00:34]}  Ra6 {[%clk 0:00:12]} 35. Nc5 {[%clk 0:00:34]}  Rb6 {[%clk 0:00:13]} 1/2-1/2


[Site "https://www.chess.com"]